bitfinex/quotes_SOLUSD_20260224
["timestamp","ask_amount","ask_price","bid_price","bid_amount"]
[1771899703381,0.4686137,77.999,77.971,0.81041706]
[1771899703683,5.05698458,78.0,77.971,0.81041706]
[1771899704072,0.4686137,77.999,77.964,0.81041706]
[1771899704476,0.46816744,77.989,77.963,12.82659723]
[1771899704664,5.05698458,77.98,77.958,0.81041706]
[1771899704865,0.46816744,77.989,77.958,0.81041706]
[1771899705883,0.46771477,77.969,77.941,45.7161791]
[1771899706061,0.46771477,77.969,77.902,0.4]
[1771899706062,0.46771477,77.969,77.942,0.81041706]
[1771899706382,11.29979127,77.95,77.922,0.81041706]
[1771899707482,11.29979127,77.95,77.923,12.83318147]
[1771899707862,11.29979127,77.95,77.923,13.64359853]
[1771899708261,11.29979127,77.94,77.912,0.80530309]
[1771899708486,12.828272,77.953,77.912,0.80530309]
[1771899708667,0.46601745,77.949,77.912,0.80530309]
[1771899709876,11.29979127,77.94,77.914,0.80530309]
[1771899710077,0.46560247,77.947,77.914,0.80530309]
[1771899711581,11.29979127,77.95,77.914,0.80530309]
[1771899711787,0.46478692,77.948,77.916,0.80530309]
[1771899711967,12.82890094,77.949,77.916,0.80530309]
[1771899712163,11.29979127,77.96,77.916,0.80530309]
[1771899712369,0.74871031,77.969,77.921,0.80530309]
[1771899712590,0.46438717,77.968,77.921,0.80530309]
[1771899712786,0.46438717,77.959,77.921,0.80530309]
[1771899714188,0.83509375,77.958,77.921,0.10769219]
[1771899719273,0.83509375,77.939,77.913,0.80530309]
[1771899720384,0.83509375,77.948,77.915,0.80530309]
[1771899721080,12.82833404,77.953,77.915,0.80530309]
[1771899721879,12.82671937,77.963,77.921,0.80530309]
[1771899722078,12.82671937,77.963,77.922,0.80530309]
[1771899722497,0.83509375,77.964,77.923,44.91613515]
[1771899722702,0.83509375,77.964,77.924,0.80530309]
[1771899723602,12.82643951,77.964,77.924,0.80530309]
[1771899723901,0.83509375,77.949,77.916,12.83429972]
[1771899724299,0.83509375,77.949,77.917,0.80530309]
[1771899724679,12.82906553,77.948,77.919,0.80530309]
[1771899726678,0.83509375,77.947,77.919,0.80530309]
[1771899726875,12.8293947,77.946,77.919,0.80530309]
[1771899727090,12.8293947,77.946,77.921,0.80530309]
[1771899729206,12.8293947,77.946,77.922,12.83334616]
[1771899729405,5.06688817,77.96,77.923,0.80530309]
[1771899729904,12.82725535,77.959,77.923,0.80530309]
[1771899730491,13.6623491,77.959,77.923,0.80530309]
[1771899730999,0.83509375,77.958,77.924,12.83301678]
[1771899731207,0.83509375,77.958,77.925,0.80530309]
[1771899733389,12.82725535,77.959,77.927,0.80530309]
[1771899734210,0.83509375,77.958,77.927,0.80530309]
[1771899735691,0.83509375,77.949,77.922,12.83319165]
[1771899736309,0.83509375,77.949,77.922,13.63849474]
[1771899736917,0.83509375,77.949,77.923,0.80530309]
[1771899737822,0.83509375,77.956,77.925,0.80530309]
[1771899738194,12.82758443,77.957,77.925,0.80530309]
[1771899738395,13.68675862,77.957,77.925,0.80530309]
[1771899739313,0.85917419,77.956,77.927,0.82584234]
[1771899740406,0.85917419,77.956,77.929,0.82584234]
[1771899741222,5.06688817,77.96,77.929,0.82584234]
[1771899741403,12.82725535,77.959,77.929,0.82584234]
[1771899741717,13.65133816,77.959,77.929,0.82584234]
[1771899742497,13.65133816,77.959,77.936,0.85218698]
[1771899742699,5.06688817,77.97,77.937,0.85218698]
[1771899742924,0.82408281,77.974,77.937,0.85218698]
[1771899743414,0.82408281,77.974,77.946,0.85218698]
[1771899744327,0.82408281,77.974,77.948,0.85218698]
[1771899746423,0.82408281,77.959,77.945,0.2]
[1771899747707,12.82741989,77.958,77.945,0.2]
[1771899747912,0.82408281,77.949,77.945,1e-08]
[1771899749018,12.82741989,77.958,77.945,1e-08]
[1771899749228,12.62741989,77.958,77.945,1e-08]
[1771899749813,12.82659723,77.963,77.945,1e-08]
[1771899750205,13.45068004,77.963,77.945,1e-08]
[1771899750526,0.82408281,77.962,77.945,1e-08]
[1771899751834,12.82692628,77.961,77.945,1e-08]
[1771899752031,5.06688817,77.98,77.947,0.85218698]
[1771899752825,5.89097098,77.98,77.947,0.85218698]
[1771899753410,0.82408281,77.978,77.949,0.85218698]
[1771899755318,1.02408281,77.978,77.949,0.85218698]
[1771899756233,0.2,77.968,77.95,12.82873636]
[1771899756430,0.2,77.968,77.951,0.85218698]
[1771899756631,0.82408281,77.959,77.945,1e-08]
[1771899756932,0.82408281,77.949,77.935,0.2]
[1771899757146,0.82408281,77.947,77.908,0.85218698]
[1771899757444,5.06688817,77.92,77.901,0.85218698]
[1771899757936,5.89097098,77.92,77.9,0.2]
[1771899758326,5.06688817,77.91,77.886,0.85218698]
[1771899758522,5.06688817,77.91,77.872,32.10376452]
[1771899758523,5.89097098,77.9,77.874,0.85218698]
[1771899759618,5.89097098,77.9,77.875,12.84109149]
[1771899760118,64.15983436,77.931,77.875,12.84109149]
[1771899760119,5.06688817,77.91,77.876,0.85218698]
[1771899760873,12.83338209,77.922,77.881,0.85218698]
[1771899761017,0.82408281,77.924,77.881,0.85218698]
[1771899761814,12.83263367,77.927,77.883,0.85218698]
[1771899763120,12.83263367,77.927,77.885,0.85218698]
[1771899763638,0.82408281,77.926,77.885,0.85218698]
[1771899764146,0.82408281,77.919,77.885,0.85218698]
[1771899765739,5.06968495,77.92,77.887,0.85218698]
[1771899765944,0.2,77.927,77.891,0.85218698]
[1771899766929,0.82408281,77.925,77.891,0.85218698]
[1771899768733,0.82408281,77.925,77.892,12.83828891]
[1771899768932,0.82408281,77.925,77.893,0.77728234]
[1771899771828,0.2,77.927,77.901,0.77728234]
[1771899772039,0.2,77.927,77.902,0.77728234]
[1771899773959,0.2,77.927,77.903,12.83647613]
[1771899774454,1.05326406,77.927,77.903,13.61375847]
[1771899774952,0.85326406,77.925,77.901,0.4]
[1771899775151,0.54137413,77.909,77.878,0.77728234]
[1771899776244,0.54137413,77.909,77.88,0.77728234]
[1771899777733,0.54137413,77.909,77.882,0.77728234]
[1771899777943,0.54142094,77.916,77.882,0.77728234]
[1771899778143,12.83235788,77.929,77.891,0.77728234]
[1771899778551,0.54146515,77.928,77.891,0.77728234]
[1771899779948,0.2,77.909,77.893,0.77728234]
[1771899781259,5.06968495,77.94,77.893,0.77728234]
[1771899781461,0.54155453,77.956,77.911,0.77728234]
[1771899781652,0.54155453,77.967,77.931,0.57728234]
[1771899781856,0.74155453,77.974,77.941,12.83021772]
[1771899783272,0.74155453,77.974,77.94,11.30136558]
[1771899783646,0.74155453,77.974,77.941,0.77728234]
[1771899784047,0.74190826,77.972,77.941,0.77728234]
[1771899784251,0.74209528,77.969,77.932,0.77728234]
[1771899784457,0.74209528,77.969,77.94,11.30136558]
[1771899784666,11.30136558,77.98,77.941,0.77728234]
[1771899784969,13.56508726,77.985,77.951,0.77728234]
[1771899785187,12.04361855,78.0,77.961,0.77728234]
[1771899785351,0.74225297,78.027,77.99,11.30136558]
[1771899785542,0.74225297,78.027,77.991,0.77728234]
[1771899786346,0.1,78.03,78.001,0.77728234]
[1771899786649,0.74240676,78.028,77.991,0.77728234]
[1771899787359,0.74240676,78.028,77.99,11.30136558]
[1771899787360,12.81607648,78.027,77.993,0.77728234]
[1771899787567,0.74240676,78.028,77.993,0.77728234]
[1771899787884,12.81580328,78.029,78.001,0.77728234]
[1771899788455,0.74272348,78.028,77.992,12.82182787]
[1771899788663,0.74272348,78.028,77.992,13.59911021]
[1771899788850,0.74272348,78.028,77.993,0.77728234]
[1771899789567,12.81607648,78.027,77.995,0.77728234]
[1771899789870,0.74272348,78.028,78.001,0.77728234]
[1771899790167,12.81607648,78.027,78.001,0.77728234]
[1771899790361,0.74304463,78.026,77.995,0.77728234]
[1771899791662,0.74321403,78.019,77.983,0.77728234]
[1771899792362,12.81640499,78.025,77.991,0.77728234]
[1771899792564,12.81640499,78.025,78.001,0.77728234]
[1771899792744,0.1,78.03,78.001,0.77728234]
[1771899792950,0.74337031,78.029,78.001,0.77728234]
[1771899793249,0.74337031,78.029,77.993,0.77728234]
[1771899793451,11.30136558,78.02,77.985,0.77728234]
[1771899793646,0.74352077,78.018,77.985,13.60009825]
[1771899793861,0.74352077,78.018,77.991,0.77728234]
[1771899797169,12.81668838,78.024,77.993,0.77728234]
[1771899797375,11.40136558,78.03,77.992,12.82182787]
[1771899797376,0.1,78.03,78.001,0.77728234]
[1771899797871,12.91568534,78.03,78.001,0.77728234]
[1771899798072,0.74425258,78.029,78.001,0.77728234]
[1771899799565,12.81591223,78.028,78.001,0.77728234]
[1771899800065,12.81591223,78.028,78.001,12.8202639]
[1771899800275,0.1,78.03,78.02,11.30136558]
[1771899800449,0.1,78.03,78.021,0.79669426]
[1771899800651,0.1,78.03,78.011,0.79669426]
[1771899801462,0.1,78.03,78.012,12.81854073]
[1771899801667,0.1,78.03,78.013,0.78150726]
[1771899802860,0.77940332,78.029,77.99,11.30136558]
[1771899803778,0.77940332,78.026,77.991,12.82199228]
[1771899804661,0.77940332,78.026,77.96,107.97653302]
[1771899804662,0.77940332,78.026,77.976,3.69383402]
[1771899804873,0.77940332,78.026,77.991,0.78150726]
[1771899805660,0.77940332,78.026,77.993,0.78150726]
[1771899805967,13.59573258,78.026,78.001,0.78150726]
[1771899806279,0.77940332,78.025,78.001,0.78150726]
[1771899806789,0.1,78.03,78.001,0.78150726]
[1771899806962,0.1,78.03,78.011,0.78150726]
[1771899807161,0.1,78.03,77.992,44.87639756]
[1771899807162,0.1,78.03,78.002,0.78150726]
[1771899807368,0.87940332,78.03,78.002,0.78150726]
[1771899808074,0.87940332,78.03,78.003,12.82001974]
[1771899808269,0.87940332,78.03,78.004,0.78150726]
[1771899810063,0.87940332,78.03,78.006,0.78150726]
[1771899810977,0.87940332,78.03,78.011,0.2]
[1771899811760,0.77940332,78.029,78.011,0.2]
[1771899812784,13.59531555,78.028,78.011,0.2]
[1771899813286,0.77940332,78.027,78.011,0.2]
[1771899814787,12.81624074,78.026,78.011,0.2]
[1771899815865,0.1,78.03,78.013,0.78150726]
[1771899821296,5.15479938,78.03,77.99,5.83630664]
[1771899821471,5.15479938,78.03,77.984,12.8231432]
[1771899821472,0.77940332,78.019,77.984,12.8231432]
[1771899821784,0.77940332,78.019,77.984,13.60465046]
[1771899822168,0.77940332,78.017,77.985,0.78150726]
[1771899825297,12.81788351,78.016,77.986,12.82281435]
[1771899825490,0.77940332,78.015,77.987,0.78150726]
[1771899825794,12.8173534,78.02,77.991,0.78150726]
[1771899826176,0.77940332,78.019,77.991,0.78150726]
[1771899828193,0.77940332,78.019,77.993,0.84475656]
[1771899828582,12.81755492,78.018,77.993,0.84475656]
[1771899828793,0.85904616,78.017,77.993,0.84475656]
[1771899831081,12.81788351,78.016,77.993,0.84475656]
[1771899831892,0.85904616,78.015,77.993,0.84475656]
[1771899832099,0.85904616,78.015,77.986,0.84475656]
[1771899833392,0.85904616,78.021,77.987,12.82264992]
[1771899833592,0.85904616,78.021,77.988,0.84475656]
[1771899836684,0.85904616,78.019,77.982,0.84475656]
[1771899841404,0.85904616,78.017,77.983,12.82330764]
[1771899841602,0.85904616,77.999,77.971,0.84475656]
[1771899843703,0.85904616,77.999,77.973,0.84475656]
[1771899845405,0.85904616,78.005,77.973,0.84475656]
[1771899845596,12.81870505,78.011,77.975,0.84475656]
[1771899845799,0.85904616,78.01,77.975,0.84475656]
[1771899847516,0.85904616,78.025,77.99,5.05730066]
[1771899847694,0.85904616,78.025,77.991,0.84475656]
[1771899848207,0.95904616,78.03,78.0,5.05730066]
[1771899848507,0.95904616,78.03,78.001,0.84475656]
[1771899848901,0.85904616,78.029,78.001,0.84475656]
[1771899850308,0.85904616,78.027,78.003,0.84475656]
[1771899850905,12.81591223,78.028,77.982,0.84475656]
[1771899850906,0.85904616,78.019,77.982,0.84475656]
[1771899852614,0.85904616,78.019,77.984,0.84475656]
[1771899852916,0.85904616,78.018,77.984,0.84475656]
[1771899854315,0.85904616,78.009,77.976,12.82442398]
[1771899854609,12.81919803,78.008,77.977,0.84475656]
[1771899854812,0.85904616,78.007,77.977,0.84475656]
[1771899855011,0.85904616,78.021,77.981,0.84475656]
[1771899855215,0.85904616,78.019,77.981,0.84475656]
[1771899856521,0.85904616,78.017,77.983,0.84475656]
[1771899856813,0.85904616,78.025,77.991,0.84475656]
[1771899857811,0.85904616,78.023,77.991,0.84475656]
[1771899858620,0.84987169,78.019,77.991,0.84475656]
[1771899858923,13.66624274,78.026,77.991,0.85155547]
[1771899859219,0.84987169,78.025,77.991,0.85155547]
[1771899860521,0.84987169,78.025,77.993,0.85155547]
[1771899860900,0.84987169,78.023,77.993,0.85155547]
[1771899861123,0.87271409,78.019,77.993,0.85155547]
[1771899862718,0.87271409,78.017,77.993,0.85155547]
[1771899862926,0.87271409,78.017,77.994,0.84555969]
[1771899863611,12.81647731,78.025,77.994,0.84555969]
[1771899863931,0.87271409,78.029,77.994,0.84555969]
[1771899863932,12.81591223,78.028,77.994,0.84555969]
[1771899864313,0.87271409,78.029,77.994,0.84555969]
[1771899864511,0.1,78.03,77.994,0.84555969]
[1771899865614,0.87271409,78.029,77.996,0.84555969]
[1771899867825,0.87271409,78.029,77.998,0.84555969]
[1771899868730,0.1,78.03,78.001,0.84555969]
[1771899869030,0.1,78.03,78.011,0.84555969]
[1771899870735,0.1,78.03,78.013,0.84555969]
[1771899871044,0.1,78.05,78.031,0.84555969]
[1771899872534,0.1,78.05,78.033,0.84555969]
[1771899874638,0.1,78.05,78.035,0.84555969]
[1771899875715,0.87271409,78.065,78.036,0.84555969]
[1771899876846,0.87271409,78.064,78.04,5.05730066]
[1771899877146,0.87271409,78.064,78.038,0.84555969]
[1771899877631,0.87271409,78.064,78.04,5.05730066]
[1771899877818,0.87271409,78.064,78.04,5.90286035]
[1771899878020,0.87271409,78.063,78.04,0.84555969]
[1771899878218,0.87271409,78.059,78.02,5.90286035]
[1771899878620,0.87271409,78.059,78.022,0.84555969]
[1771899879630,0.87271409,78.057,78.024,0.84555969]
[1771899880843,0.87271409,78.057,78.012,32.8916655]
[1771899881040,44.83845345,78.058,78.014,0.84555969]
[1771899881041,0.87271409,78.049,78.014,0.84555969]
[1771899882044,0.87271409,78.047,78.021,0.84555969]
[1771899885243,12.81295646,78.046,78.021,0.84555969]
[1771899885554,0.87271409,78.045,78.022,12.81689779]
[1771899885726,0.87271409,78.045,78.023,0.84555969]
[1771899888140,0.86929084,78.043,78.023,0.84555969]
[1771899889047,0.86929084,78.043,78.024,12.81656926]
[1771899889237,0.86929084,78.043,78.025,0.81385318]
[1771899889632,0.86929084,78.043,78.02,17.87016895]
[1771899889831,0.86929084,78.041,78.021,0.81385318]
[1771899890032,0.86929084,78.041,78.016,12.81777452]
[1771899890234,0.86929084,78.029,77.999,12.82067718]
[1771899890836,0.86929084,78.027,77.999,12.82067718]
[1771899891056,0.86929084,78.027,77.998,0.81385318]
[1771899891360,0.86929084,78.027,77.999,0.81385318]
[1771899892357,0.86929084,78.019,77.984,0.81385318]
[1771899892738,0.86929084,78.019,77.99,5.05302111]
[1771899893057,0.86929084,78.019,77.991,0.81385318]
[1771899893347,0.86929084,78.017,77.993,0.81385318]
[1771899895354,0.86929084,78.03,77.995,0.81385318]
[1771899895656,51.2253921,78.087,78.021,0.81385318]
[1771899895657,0.86929084,78.049,78.021,0.81385318]
[1771899897632,0.86929084,78.049,78.023,0.81385318]
[1771899898561,0.86929084,78.058,78.031,0.81385318]
[1771899900041,0.86929084,78.066,78.041,0.81385318]
[1771899900364,0.1,78.08,78.06,5.05302111]
[1771899900742,0.86929084,78.078,78.041,0.81385318]
[1771899900956,0.86929084,78.059,78.028,12.81585687]
[1771899901169,0.86929084,78.059,78.02,5.05302111]
[1771899901170,0.86929084,78.059,78.024,12.81654054]
[1771899901469,0.86929084,78.039,77.991,0.81385318]
[1771899901672,0.86929084,78.019,77.983,0.81385318]
[1771899901959,5.05302111,78.01,77.973,0.81385318]
[1771899902155,0.86929084,78.009,77.973,0.81385318]
[1771899902351,12.81755492,78.018,77.981,0.81385318]
[1771899902556,0.86929084,78.017,77.981,0.81385318]
[1771899903559,11.2911863,78.01,77.981,0.81385318]
[1771899903740,44.86144222,78.018,77.926,51.3304032]
[1771899903741,0.86929084,77.999,77.966,12.82595621]
[1771899903941,0.86929084,77.989,77.961,12.82686457]
[1771899904752,0.86929084,77.989,77.931,5.36086188]
[1771899904753,0.86929084,77.987,77.956,12.82768661]
[1771899904969,0.86929084,77.987,77.957,0.81385318]
[1771899905270,0.86929084,77.995,77.961,0.81385318]
[1771899905440,0.86929084,77.995,77.971,0.81385318]
[1771899905865,12.8190337,78.009,77.971,0.81385318]
[1771899906046,0.86929084,78.009,77.982,13.63732526]
[1771899906246,0.86929084,78.009,77.983,0.81385318]
[1771899906661,0.86929084,78.018,77.983,0.81385318]
[1771899908070,0.86929084,78.024,77.993,0.81385318]
[1771899908455,0.86929084,78.028,77.993,0.81385318]
[1771899910772,0.86929084,78.026,77.995,0.81385318]
[1771899912276,0.86929084,78.043,78.011,0.81385318]
[1771899912465,3.69383402,78.061,78.011,0.81385318]
[1771899912466,0.86929084,78.039,78.011,0.81385318]
[1771899912770,0.86929084,78.047,78.013,0.81385318]
[1771899912955,0.86929084,78.047,78.021,0.81385318]
[1771899913349,0.86929084,78.066,78.031,0.81385318]
[1771899914772,0.86929084,78.059,78.026,12.81623841]
[1771899915075,0.86929084,78.059,78.026,13.63009159]
[1771899915258,0.86929084,78.059,78.027,0.81385318]
[1771899916056,0.86929084,78.059,78.002,3.69383402]
[1771899916057,0.86929084,78.049,78.011,0.81385318]
[1771899917473,12.81262812,78.048,78.012,12.81854073]
[1771899917661,0.86929084,78.047,78.013,0.81385318]
[1771899917865,0.86929084,78.047,78.02,12.10673208]
[1771899918066,0.86929084,78.047,78.021,0.81554578]
[1771899918466,0.87255986,78.055,78.021,0.81554578]
[1771899921254,12.81164322,78.054,78.022,12.81689779]
[1771899921560,0.88786768,78.053,78.023,0.82750039]
[1771899922179,0.88786768,78.053,78.031,0.82750039]
[1771899922865,11.2911863,78.07,78.031,0.82750039]
[1771899922866,0.88786768,78.06,78.031,0.82750039]
[1771899923255,0.88786768,78.058,78.031,0.82750039]
[1771899923464,0.88786768,78.056,78.022,12.81689779]
[1771899924455,0.88786768,78.056,78.023,0.82750039]
[1771899924658,11.2911863,78.05,78.023,0.82750039]
[1771899924869,0.88786768,78.049,78.018,13.64495721]
[1771899925079,0.88786768,78.049,78.019,0.82750039]
[1771899925279,0.88786768,78.049,78.02,11.2911863]
[1771899925482,0.88786768,78.047,78.02,12.11868669]
[1771899925859,0.88786768,78.047,78.02,0.82750039]
[1771899926960,0.88786768,78.047,78.02,12.11868669]
[1771899927482,0.88786768,78.045,78.02,5.88102721]
[1771899927782,0.88786768,78.045,78.02,18.69820139]
[1771899928866,0.88786768,78.045,78.02,13.64467457]
[1771899929478,0.88786768,78.045,78.021,0.82750039]
[1771899931864,0.88786768,78.045,77.857,47.00938107]
[1771899931865,0.88786768,78.028,77.987,0.82750039]
[1771899932177,0.28432314,78.029,77.981,0.82750039]
[1771899932178,0.88786768,78.019,77.981,0.82750039]
[1771899932371,0.88786768,77.999,77.974,12.82465187]
[1771899933885,12.81979844,78.005,77.975,0.82750039]
[1771899934092,13.70766612,78.005,77.975,0.82750039]
[1771899934592,0.88786768,78.005,77.975,0.82750039]
[1771899934784,0.88786768,78.005,77.974,12.82465187]
[1771899934785,0.88786768,78.024,77.991,0.82750039]
[1771899935092,11.29424679,78.03,77.991,0.82750039]
[1771899935093,0.88786768,78.022,77.991,0.82750039]
[1771899935886,0.75973155,78.009,77.986,12.82276489]
[1771899936088,0.75973155,78.009,77.986,13.65026528]
[1771899936273,0.75973155,78.009,77.987,0.82750039]
[1771899936590,11.29424679,78.02,77.991,0.82750039]
[1771899937392,11.29424679,78.01,77.984,0.82750039]
[1771899937977,0.88786768,78.009,77.981,45.71002537]
[1771899938289,0.88786768,78.018,77.982,0.82750039]
[1771899938591,32.03574349,78.038,78.001,0.82750039]
[1771899938773,0.88786768,78.033,78.01,12.12174718]
[1771899938974,0.88786768,78.033,78.011,0.82750039]
[1771899939777,12.81525527,78.032,78.011,0.82750039]
[1771899940593,0.88786768,78.029,78.004,0.82750039]
[1771899940788,0.88786768,78.029,77.999,12.82063023]
[1771899940974,0.88786768,78.029,78.001,0.82750039]
[1771899941172,0.88786768,78.036,78.001,0.82750039]
[1771899941886,11.29424679,78.04,78.003,0.82750039]
[1771899941887,13.70263028,78.035,78.003,0.82750039]
[1771899942188,0.88786768,78.049,78.011,0.82750039]
[1771899942377,0.88786768,78.059,78.021,0.82750039]
[1771899942685,0.88786768,78.055,78.021,0.82750039]
[1771899942993,6.65117707,78.077,78.002,108.97156481]
[1771899942994,12.8096456,78.067,78.031,0.82750039]
[1771899943578,12.8096456,78.067,78.041,0.82750039]
[1771899943885,0.88786768,78.069,78.042,0.82750039]
[1771899945375,11.29424679,78.07,78.042,0.82750039]
[1771899945376,0.88786768,78.067,78.042,0.82750039]
[1771899945892,11.27540011,78.07,78.044,0.82750039]
[1771899946094,11.27540011,78.09,78.051,0.82750039]
[1771899946294,11.27540011,78.09,78.043,44.84707148]
[1771899946295,0.88786768,78.091,78.061,0.82750039]
[1771899946479,0.88786768,78.098,78.061,0.82750039]
[1771899946675,0.88786768,78.098,78.071,0.82750039]
[1771899946879,11.37540011,78.1,78.071,0.82750039]
[1771899947187,0.88786768,78.114,78.072,0.82750039]
[1771899947377,0.88786768,78.109,78.083,0.82750039]
[1771899947582,0.88786768,78.109,78.074,13.63574617]
[1771899947793,0.88786768,78.109,78.081,0.82750039]
[1771899947983,6.64387724,78.144,78.074,12.80824578]
[1771899947984,11.37540011,78.13,78.091,0.86774085]
[1771899948188,0.83999768,78.129,78.091,0.86774085]
[1771899948788,0.83999768,78.129,78.101,0.86774085]
[1771899949409,0.1,78.13,78.103,0.86774085]
[1771899949776,0.1,78.14,78.111,0.86774085]
[1771899950077,5.36086188,78.191,78.11,11.27540011]
[1771899950078,0.83999768,78.149,78.112,0.86774085]
[1771899950277,0.83999768,78.139,78.112,0.86774085]
[1771899950714,0.83999768,78.139,78.104,0.86774085]
[1771899951001,0.83999768,78.119,78.097,0.86774085]
[1771899951385,11.27540011,78.12,78.098,13.67216605]
[1771899951600,11.27540011,78.12,78.094,12.80504998]
[1771899951601,0.83999768,78.119,78.094,12.80504998]
[1771899952099,0.83999768,78.119,78.095,0.86774085]
[1771899952478,0.83999768,78.109,78.084,12.80660208]
[1771899952675,0.83999768,78.117,78.085,0.86774085]
[1771899953485,0.83999768,78.117,78.086,12.80639295]
[1771899953705,0.1,78.15,78.131,0.65415482]
[1771899953890,0.1,78.15,78.089,3.97815716]
[1771899953891,0.83999768,78.149,78.101,0.28432314]
[1771899954090,0.83999768,78.149,78.095,0.28432314]
[1771899954286,11.37540011,78.15,78.09,11.27540011]
[1771899954287,0.83999768,78.129,78.091,0.14216157]
[1771899954683,0.83999768,78.139,78.091,0.14216157]
[1771899955081,12.89593409,78.15,78.091,0.14216157]
[1771899955082,11.37540011,78.15,78.094,0.28432314]
[1771899955282,11.37540011,78.15,78.101,0.28432314]
[1771899955505,0.83999768,78.149,78.103,0.28432314]
[1771899955703,0.83999768,78.149,78.102,44.81319299]
[1771899955704,0.1,78.15,78.11,11.55972325]
[1771899956042,0.1,78.15,78.123,0.52471082]
[1771899956510,0.1,78.16,78.131,0.42587591]
[1771899956801,0.1,78.16,78.134,0.42587591]
[1771899956982,0.1,78.16,78.113,0.14216157]
[1771899956983,0.83999768,78.149,78.113,0.14216157]
[1771899957188,0.83999768,78.149,78.114,0.42709408]
[1771899958609,0.83999768,78.149,78.115,44.80573512]
[1771899959606,0.83999768,78.149,78.116,0.42948592]
[1771899960614,11.27540011,78.14,78.098,0.43065092]
[1771899960910,0.83999768,78.119,78.083,0.43065092]
[1771899961812,0.83999768,78.127,78.091,0.43181689]
[1771899962014,0.83999768,78.127,78.09,11.27540011]
[1771899962196,0.83999768,78.119,78.084,0.43181689]
[1771899962592,0.83999768,78.119,78.086,0.43298434]
[1771899963011,0.83999768,78.119,78.085,44.82294934]
[1771899963012,0.83999768,78.109,78.085,12.80655695]
[1771899964214,11.27540011,78.12,78.085,12.80655695]
[1771899964215,0.83999768,78.129,78.093,0.43524884]
[1771899964413,0.83999768,78.139,78.101,0.43524884]
[1771899964614,0.83999768,78.149,78.112,44.80745595]
[1771899964917,0.83999768,78.129,78.083,0.43524884]
[1771899965487,0.83999768,78.129,78.085,0.43636238]
[1771899965688,0.83999768,78.129,78.091,0.43636238]
[1771899965893,0.83999768,78.129,78.069,51.2364169]
[1771899965894,11.27540011,78.11,78.07,11.27540011]
[1771899966116,0.83999768,78.109,78.07,11.27540011]
[1771899966306,0.83999768,78.109,78.062,45.27361792]
[1771899966618,0.83999768,78.109,78.063,0.28432314]
[1771899966799,0.83999768,78.107,78.064,44.83500716]
[1771899967197,12.80278588,78.108,78.064,12.81000204]
[1771899967198,0.83999768,78.099,78.064,12.81000204]
[1771899970409,0.83999768,78.099,78.053,0.43856377]
[1771899970604,0.83999768,78.099,78.061,32.02589802]
[1771899970919,0.83999768,78.099,78.07,11.27540011]
[1771899971102,0.83999768,78.098,78.064,0.44088892]
[1771899971302,0.83999768,78.098,78.061,32.02589802]
[1771899971516,0.83999768,78.11,78.074,0.44149045]
[1771899972303,0.83999768,78.11,78.08,11.27540011]
[1771899972510,0.83999768,78.11,78.075,45.27078651]
[1771899973022,0.83999768,78.109,78.075,12.80819724]
[1771899974218,0.83999768,78.099,78.063,12.81016614]
[1771899974620,0.83999768,78.099,78.063,44.8355815]
[1771899974922,0.83999768,78.098,78.063,44.8355815]
[1771899975314,0.83999768,78.098,78.063,45.27946712]
[1771899975618,0.83999768,78.098,78.064,0.44388562]
[1771899976802,0.83999768,78.098,78.065,12.80983795]
[1771899977004,0.83999768,78.098,78.065,44.83443283]
[1771899978327,0.83999768,78.098,78.065,45.28059306]
[1771899979205,0.83999768,78.098,78.066,0.44671206]
[1771899980709,0.83999768,78.098,78.061,12.81049435]
[1771899981522,0.86725625,78.096,78.061,12.81049435]
[1771899982032,0.86725625,78.096,78.062,0.4483333]
[1771899982222,0.86725625,78.103,78.071,0.44886199]
[1771899983219,12.80232442,78.111,78.061,44.83673024]
[1771899983220,0.86725625,78.119,78.081,0.4493812]
[1771899983426,0.86725625,78.117,78.081,0.4493812]
[1771899983622,0.86725625,78.117,78.075,0.4493812]
[1771899984732,0.86725625,78.109,78.074,12.80836129]
[1771899985109,0.86725625,78.109,78.074,13.25824486]
[1771899985313,0.86725625,78.107,78.076,12.80803319]
[1771899987310,12.80311371,78.106,78.071,12.80885347]
[1771899987532,0.86725625,78.105,78.071,12.80885347]
[1771899987741,11.27540011,78.09,78.052,0.45137458]
[1771899987919,0.86725625,78.089,78.04,11.27540011]
[1771899988117,0.86725625,78.089,78.041,0.28432314]
[1771899988311,0.86725625,78.079,78.041,0.28432314]
[1771899989322,0.86725625,78.069,78.021,0.45236539]
[1771899989643,0.86725625,78.067,78.023,0.28432314]
[1771899989935,0.86725625,78.059,78.023,0.28432314]
[1771899990435,0.86725625,78.059,78.022,12.81689779]
[1771899990639,0.86725625,78.059,78.022,44.85914228]
[1771899990839,0.86725625,78.059,78.022,12.81689779]
[1771899991237,0.86725625,78.049,78.022,12.81689779]
[1771899991638,0.86725625,78.048,78.011,12.81870505]
[1771899991840,0.86725625,78.039,78.001,12.82034845]
[1771899992038,0.86725625,78.039,78.001,44.87121959]
[1771899992244,0.86725625,78.039,78.004,0.45384021]